bitfinex/quotes_ETHUSD_20220117
["timestamp","ask_amount","ask_price","bid_price","bid_amount"]
[1642386044750,0.00113684,3316.0,3315.7,2.57894225]
[1642386045152,0.7538768,3316.5,3315.7,2.57894225]
[1642386045153,1.0538768,3316.5,3315.7,2.57894225]
[1642386045453,0.00341054,3316.4,3315.7,2.57894225]
[1642386045855,0.00284211,3316.3,3315.7,3.02476716]
[1642386046254,0.00227369,3316.2,3315.7,2.57894225]
[1642386046655,0.00170527,3316.1,3315.7,2.57894225]
[1642386047055,0.00113684,3316.0,3315.7,2.57894225]
[1642386047456,0.00511581,3316.7,3315.7,2.57894225]
[1642386047901,0.00454738,3316.6,3315.7,2.57894225]
[1642386048307,0.00397896,3316.5,3315.7,2.57894225]
[1642386048700,0.00341054,3316.4,3315.7,2.57894225]
[1642386049100,0.00284211,3316.3,3315.7,2.57894225]
[1642386049500,0.00227369,3316.2,3315.7,2.57894225]
[1642386049902,0.00170527,3316.1,3315.7,2.57894225]
[1642386050303,0.00113684,3316.0,3315.7,2.57894225]
[1642386050709,0.00227369,3316.2,3315.7,2.57894225]
[1642386051103,0.00170527,3316.1,3315.7,2.57894225]
[1642386051556,0.75502914,3316.0,3315.7,2.57894225]
[1642386051957,1.05502914,3316.0,3315.7,2.57894225]
[1642386053159,0.30113684,3316.0,3315.7,2.57894225]
[1642386053459,0.00113684,3316.0,3315.7,2.57894225]
[1642386056498,0.00113684,3316.0,3315.8,2.47692984]
[1642386056699,0.00113684,3316.0,3315.7,2.57894225]
[1642386057700,0.00113684,3316.0,3315.8,2.45383685]
[1642386058099,0.00113684,3316.0,3315.7,2.57894225]
[1642386058950,0.00113684,3316.0,3315.8,2.44590551]
[1642386059152,0.00113684,3316.0,3315.7,2.57894225]
[1642386061356,0.00113684,3316.0,3315.8,2.4473438]
[1642386061551,0.00113684,3316.0,3315.7,2.57894225]
[1642386062151,0.00113684,3316.0,3315.9,2.57894225]
[1642386063021,0.00113684,3316.0,3315.7,2.57894225]
[1642386063222,0.00113684,3316.0,3315.9,14.02325289]
[1642386064420,0.00113684,3316.0,3315.9,14.45725289]
[1642386064823,0.00113684,3316.0,3315.9,17.03619514]
[1642386065421,0.00113684,3316.0,3315.9,12.63619514]
[1642386066021,0.00113684,3316.0,3315.9,5.63619514]
[1642386066322,0.00113684,3316.0,3315.9,3.01294225]
[1642386066561,0.00113684,3316.0,3315.9,2.57894225]
[1642386067859,0.00113684,3316.0,3315.6,5.47862255]
[1642386068059,0.80903684,3316.0,3315.6,0.07512838]
[1642386068259,4.5,3315.9,3315.1,6.8763312]
[1642386068460,3.491467,3315.8,3315.1,3.8682312]
[1642386068660,1.3,3315.7,3315.2,0.00341054]
[1642386069161,1.6,3315.7,3315.2,0.00341054]
[1642386069357,1.20392069,3315.4,3315.2,0.00341054]
[1642386069560,0.3,3315.3,3315.2,0.00341054]
[1642386069759,1.6199,3315.3,3315.2,0.00341054]
[1642386069958,1.65616536,3315.3,3315.2,0.00341054]
[1642386070603,1.40746536,3315.3,3315.1,0.00397897]
[1642386070802,1.40746536,3315.3,3314.7,3.8682312]
[1642386070803,1.40746536,3315.3,3314.8,0.00568424]
[1642386071904,5.1709096,3315.3,3314.8,0.00568424]
[1642386072104,1.40746536,3315.3,3314.8,0.00568424]
[1642386072304,1.73447677,3315.3,3314.8,0.00568424]
[1642386072706,0.62701141,3315.3,3314.8,0.00568424]
[1642386072905,0.3,3315.3,3314.6,0.00682109]
[1642386073103,0.6,3315.6,3314.6,0.00682109]
[1642386073304,1.00113684,3316.0,3314.6,0.00682109]
[1642386073503,0.3,3315.5,3315.4,1.12144034]
[1642386073707,0.00113684,3316.0,3315.4,1.12144034]
[1642386073963,0.00113684,3316.0,3315.4,1.12371404]
[1642386074150,0.00113684,3316.0,3315.5,0.00170527]
[1642386076152,0.00113684,3316.0,3315.1,0.75389]
[1642386076954,0.00113684,3316.0,3315.8,1.49445562]
[1642386078603,0.00113684,3316.0,3315.7,1.27426434]
[1642386079612,0.00113684,3316.0,3315.9,1.47647023]
[1642386081467,0.79263086,3316.6,3315.9,1.47647023]
[1642386081656,0.3,3316.5,3315.9,1.47647023]
[1642386081857,0.60397896,3316.5,3315.9,1.47647023]
[1642386082460,0.60397896,3316.5,3315.7,1.27426434]
[1642386083264,3.38584928,3316.5,3315.7,1.27426434]
[1642386083660,1.0,3316.4,3315.7,1.27426434]
[1642386083861,0.7539896,3316.1,3315.4,1.53725959]
[1642386084060,0.3,3316.0,3315.4,1.53725959]
[1642386084361,0.30113684,3316.0,3315.5,0.00170527]
[1642386084763,0.30113684,3316.0,3315.3,0.00284212]
[1642386084962,0.30113684,3316.0,3315.5,1.35585028]
[1642386085401,0.30113684,3316.0,3315.7,1.56278607]
[1642386086500,0.00113684,3316.0,3315.7,1.56278607]
[1642386090874,1.09010449,3316.0,3315.6,0.00113685]
[1642386091065,1.39010449,3316.0,3315.6,0.00113685]
[1642386092470,1.39010449,3316.0,3315.6,2.58070766]
[1642386093315,1.39010449,3316.0,3315.7,1.41499263]
[1642386093512,2.39010449,3316.0,3315.7,1.41499263]
[1642386093711,1.39010449,3316.0,3315.7,1.41499263]
[1642386093913,2.39010449,3316.0,3315.7,1.41499263]
[1642386094311,1.39010449,3316.0,3315.6,0.00113685]
[1642386096115,2.39010449,3316.0,3315.6,0.00113685]
[1642386096313,1.39010449,3316.0,3315.6,0.00113685]
[1642386096560,0.63614099,3316.0,3315.6,0.00113685]
[1642386096957,0.30113684,3316.0,3315.6,0.00113685]
[1642386097359,0.00113684,3316.0,3315.6,0.00113685]
[1642386098061,0.78690881,3316.0,3315.6,0.00113685]
[1642386098258,0.6,3315.9,3315.6,0.00113685]
[1642386100804,0.3,3315.9,3315.6,0.00113685]
[1642386101406,0.30113684,3316.0,3315.6,0.00113685]
[1642386101605,0.00113684,3316.0,3315.6,0.00113685]
[1642386102705,0.00113684,3316.0,3315.6,2.58065069]
[1642386103986,0.00113684,3316.0,3315.6,2.53065069]
[1642386104172,0.00170527,3315.9,3315.5,1.35585028]
[1642386104672,0.00113685,3315.8,3315.5,1.35585028]
[1642386105075,0.00341054,3316.2,3315.5,1.35585028]
[1642386105478,0.00284212,3316.1,3315.5,1.35585028]
[1642386105875,0.00227369,3316.0,3315.5,1.35585028]
[1642386106275,0.00170527,3315.9,3315.5,1.35585028]
[1642386106677,0.00113685,3315.8,3315.5,1.35585028]
[1642386107076,0.3,3316.3,3315.5,1.35585028]
[1642386107077,0.7539023,3316.1,3315.5,1.35585028]
[1642386107276,1.08706296,3316.1,3315.5,1.35585028]
[1642386107477,0.30227369,3316.0,3315.5,1.35585028]
[1642386107906,0.00170527,3315.9,3315.5,1.35585028]
[1642386108307,0.00113685,3315.8,3315.5,1.35585028]
[1642386108706,0.00170527,3315.9,3315.5,1.35585028]
[1642386109107,0.00113685,3315.8,3315.5,1.35585028]
[1642386109509,0.3,3316.3,3315.5,1.35585028]
[1642386109707,0.30454739,3316.4,3315.5,1.35585028]
[1642386109908,0.00341054,3316.2,3315.5,1.35585028]
[1642386110108,0.00397896,3316.3,3315.5,1.35585028]
[1642386110308,0.00284212,3316.1,3315.5,1.35585028]
[1642386110515,0.00341054,3316.2,3315.5,1.35585028]
[1642386110712,0.00227369,3316.0,3315.5,1.35585028]
[1642386110912,0.00284212,3316.1,3315.5,1.35585028]
[1642386111210,0.00227369,3316.0,3315.5,1.35585028]
[1642386111656,0.00170527,3315.9,3315.5,1.35585028]
[1642386112156,0.00113685,3315.8,3315.5,1.35585028]
[1642386112558,0.00568423,3316.6,3315.5,1.35585028]
[1642386112957,0.00511581,3316.5,3315.5,1.35585028]
[1642386113366,0.00454739,3316.4,3315.5,1.35585028]
[1642386113757,0.00397896,3316.3,3315.5,1.35585028]
[1642386113958,0.00397896,3316.3,3316.0,1.37670433]
[1642386114158,0.00341054,3316.2,3316.0,1.37670433]
[1642386114557,1.6,3316.7,3316.0,1.37670433]
[1642386114558,0.00284212,3316.1,3316.0,1.37670433]
[1642386116207,0.00284212,3316.1,3316.0,1.67670433]
[1642386116407,0.00284212,3316.1,3316.0,2.43034433]
[1642386116606,3.00666199,3317.4,3316.2,0.03031494]
[1642386116808,3.00666199,3317.4,3316.3,0.434]
[1642386117109,0.00682108,3317.3,3316.6,1.14102004]
[1642386117307,1.28035443,3317.3,3316.6,1.14102004]
[1642386117506,0.00625266,3317.2,3316.6,1.14102004]
[1642386117905,0.00568423,3317.1,3316.6,1.14102004]
[1642386118307,0.00511581,3317.0,3316.6,1.14102004]
[1642386118707,0.00454738,3316.9,3316.6,1.14102004]
[1642386118975,0.00454738,3316.9,3316.2,2.61919636]
[1642386119163,0.00397896,3316.8,3316.1,1.1435]
[1642386119362,0.30397896,3316.8,3316.1,1.1435]
[1642386119563,0.00341054,3316.7,3316.1,1.1435]
[1642386119963,0.00284211,3316.6,3316.1,1.1435]
[1642386120363,0.00227369,3316.5,3316.3,1.52537073]
[1642386120763,0.00170527,3316.4,3316.3,1.52537073]
[1642386121365,0.00170527,3316.4,3316.3,4.14381936]
[1642386122708,0.00170527,3316.4,3316.3,8.39381936]
[1642386123009,0.00170527,3316.4,3316.3,5.77537073]
[1642386123209,0.00170527,3316.4,3316.3,1.52537073]
[1642386124210,0.00170527,3316.4,3316.3,4.10434431]
[1642386124610,0.00170527,3316.4,3316.3,15.80031328]
[1642386124810,6.18,3317.7,3316.4,8.7]
[1642386125011,6.18,3317.7,3316.4,11.29402244]
[1642386125210,0.00568423,3317.4,3316.4,11.29402244]
[1642386125413,0.00568423,3317.4,3316.4,11.72802244]
[1642386125611,0.00511581,3317.3,3317.1,1.22189979]
[1642386125812,0.00511581,3317.3,3316.5,6.9079]
[1642386126011,6.18,3317.7,3316.5,6.9079]
[1642386126012,0.00454739,3317.2,3316.5,6.9079]
[1642386126476,0.00397896,3317.1,3316.5,9.48687358]
[1642386126859,0.00341054,3317.0,3316.6,1.26927038]
[1642386127259,0.00284211,3316.9,3316.6,2.50627038]
[1642386127659,0.00227369,3316.8,3316.6,2.50627038]
[1642386128057,0.00170527,3316.7,3316.6,2.50627038]
[1642386128459,0.00170527,3316.7,3316.6,5.21142873]
[1642386128858,0.00170527,3316.7,3316.6,5.01062782]
[1642386129062,0.00170527,3316.7,3316.6,5.05059703]
[1642386129958,0.00170527,3316.7,3316.6,2.50627038]
[1642386130809,0.00170527,3316.7,3316.6,5.0041148]
[1642386131011,0.00170527,3316.7,3316.6,5.02661602]
[1642386131209,0.00170527,3316.7,3316.6,2.50627038]
[1642386131809,0.00170527,3316.7,3316.6,5.05183122]
[1642386132412,0.00170527,3316.7,3316.6,11.25183122]
[1642386132909,0.00170527,3316.7,3316.6,5.05183122]
[1642386133409,0.00170527,3316.7,3316.6,8.90183122]
[1642386134367,0.00170527,3316.7,3316.6,5.05183122]
[1642386134763,0.00170527,3316.7,3316.6,2.50627038]
[1642386135162,0.00170527,3316.7,3316.6,1.237]
[1642386135763,0.00170527,3316.7,3316.3,1.52537073]
[1642386135966,0.00170527,3316.7,3315.9,4.99672819]
[1642386136163,0.00113684,3316.6,3315.9,6.2854239]
[1642386136364,0.00113684,3316.6,3316.0,0.0022737]
[1642386144265,0.00113684,3316.6,3316.1,1.50716]
[1642386144667,0.00113684,3316.6,3316.2,0.00113685]
[1642386144863,0.00113684,3316.6,3316.3,0.75357]
[1642386146312,0.00113684,3316.6,3316.3,1.75357]
[1642386146512,0.00113684,3316.6,3316.4,1.6486]
[1642386146713,0.00113684,3316.6,3316.5,11.95]
[1642386146910,0.00113684,3316.6,3316.5,12.384]
[1642386147113,2.86099873,3318.2,3316.6,10.3]
[1642386147315,0.03740974,3318.3,3316.7,0.434]
[1642386147516,0.00738951,3317.9,3317.1,0.7534]
[1642386147712,0.00738951,3317.9,3317.1,1.7849]
[1642386147910,0.00682109,3317.8,3317.2,1.1588]
[1642386148112,0.00682109,3317.8,3317.2,2.1588]
[1642386148411,0.00625266,3317.7,3317.3,2.73282628]
[1642386148814,0.00568424,3317.6,3317.3,2.73282628]
[1642386149261,0.31107501,3318.5,3317.3,2.73282628]
[1642386149262,0.00511582,3317.5,3317.3,2.73282628]
[1642386149660,0.00454739,3317.4,3317.3,2.73282628]
[1642386151961,0.00454739,3317.4,3317.3,3.73282628]
[1642386152160,0.00454739,3317.4,3317.3,2.73282628]
[1642386152364,0.00454739,3317.4,3317.3,7.93282628]
[1642386153410,0.00454739,3317.4,3317.3,2.73282628]
[1642386155212,0.00454739,3317.4,3317.3,8.78282628]
[1642386158462,0.00454739,3317.4,3317.3,2.73282628]
[1642386160215,0.00454739,3317.4,3317.3,8.13282628]
[1642386160616,0.31107501,3318.5,3317.6,1.50647]
[1642386160913,0.00568424,3318.4,3317.6,1.50647]
[1642386161314,0.00511581,3318.3,3317.6,1.50647]
[1642386161714,0.00454739,3318.2,3317.7,0.75324]
[1642386162114,0.00397897,3318.1,3317.7,0.75324]
[1642386162519,0.61107501,3318.5,3317.7,0.75324]
[1642386162520,0.00341054,3318.0,3317.7,0.75324]
[1642386162917,0.00284212,3317.9,3317.3,4.48621628]
[1642386163315,0.0022737,3317.8,3317.3,4.48621628]
[1642386163517,0.0022737,3317.8,3317.3,3.48621628]
[1642386163716,0.00170527,3317.7,3317.3,3.48621628]
[1642386164160,0.00113685,3317.6,3317.3,3.48621628]
[1642386164963,0.00113685,3317.6,3317.3,2.73282628]
[1642386166167,0.00113685,3317.6,3317.3,3.48621628]
[1642386167067,0.00113685,3317.6,3317.5,10.80653]
[1642386168211,0.00113685,3317.6,3317.5,13.38472442]
[1642386171660,0.00113685,3317.6,3317.5,2.57819442]
[1642386172958,0.00113685,3317.6,3317.4,2.57819442]
[1642386174061,0.00113685,3317.6,3317.3,3.16682628]
[1642386174259,0.00113685,3317.6,3317.3,2.73282628]
[1642386178111,0.00113685,3317.6,3317.4,2.57822671]
[1642386178414,0.00113685,3317.6,3317.4,3.33157671]
[1642386179859,0.00113685,3317.6,3317.4,0.75335]
[1642386181459,0.00113685,3317.6,3317.3,2.73282628]
[1642386185015,0.00113685,3317.6,3317.4,2.57837064]
[1642386186315,0.00113685,3317.6,3317.3,2.73282628]
[1642386186562,0.00113685,3317.6,3317.2,1.1588]
[1642386186764,0.01394977,3317.6,3316.7,7.57414007]
[1642386187161,0.01394977,3317.6,3316.8,0.00341054]
[1642386187562,0.00113685,3317.6,3316.8,0.00341054]
[1642386187961,0.00113685,3317.6,3317.0,1.1523933]
[1642386188362,0.00113685,3317.6,3317.1,1.21540633]
[1642386188765,0.00113685,3317.6,3317.2,0.00113684]
[1642386189763,0.00113685,3317.6,3317.2,2.57997047]
[1642386192515,0.01275704,3318.6,3317.4,11.6]
[1642386192715,1.2365,3318.7,3317.4,11.6]
[1642386192915,1.15364421,3318.7,3317.5,6.35]
[1642386193213,0.00284211,3318.6,3317.6,0.43684212]
[1642386193413,1.10648632,3318.7,3317.7,5.0]
[1642386193613,1.10648632,3318.7,3318.6,1.53765633]
[1642386193815,0.3,3318.7,3318.6,1.53765633]
[1642386194070,0.44488153,3318.8,3318.6,1.53765633]
[1642386194071,0.74488153,3318.8,3318.6,1.53765633]
[1642386194868,3.75852025,3319.5,3318.6,2.64785633]
[1642386195067,3.6249,3319.7,3318.6,2.64785633]
[1642386196673,3.6249,3319.7,3319.4,1.31064382]
[1642386196866,3.75852025,3319.8,3319.4,1.31064382]
[1642386197166,0.00625266,3319.7,3319.4,1.31064382]
[1642386197565,0.00568424,3319.6,3319.4,1.31064382]
[1642386197822,0.00568424,3319.6,3318.7,5.65114723]
[1642386198024,0.00511581,3319.5,3318.7,5.65114723]
[1642386198430,0.00454739,3319.4,3319.3,1.27586176]
[1642386203369,0.00454739,3319.4,3318.7,3.0737]
[1642386203769,0.00397897,3319.3,3318.7,3.0737]
[1642386204069,0.00341054,3319.2,3318.7,3.0737]
[1642386204473,0.33557703,3319.8,3319.1,1.48590807]
[1642386204668,1.3,3319.8,3319.1,1.48590807]
[1642386204870,0.00568424,3319.6,3319.1,1.48590807]
[1642386205312,0.00511581,3319.5,3319.1,1.48590807]
[1642386205714,0.00454739,3319.4,3319.1,1.48590807]
[1642386206113,0.00397897,3319.3,3319.1,1.48590807]
[1642386206520,0.00341054,3319.2,3319.1,1.48590807]
[1642386213414,0.00341054,3319.2,3319.1,1.47829765]
[1642386213919,0.00341054,3319.2,3319.1,1.42829765]
[1642386216563,0.00341054,3319.2,3319.1,10.02829765]
[1642386219565,0.00341054,3319.2,3319.1,1.42829765]
[1642386220415,0.00341054,3319.2,3319.1,5.62829765]
[1642386222117,0.00341054,3319.2,3319.1,1.42829765]
[1642386223517,0.00341054,3319.2,3319.1,6.82829765]
[1642386228428,0.00341054,3319.2,3319.1,10.02829765]
[1642386230924,0.00341054,3319.2,3319.1,6.82829765]
[1642386231124,0.00341054,3319.2,3319.1,7.82829765]
[1642386231326,0.00341054,3319.2,3319.1,12.13122765]
[1642386231569,0.00341054,3319.2,3319.1,7.58122765]
[1642386231970,0.00341054,3319.2,3319.1,8.58122765]
[1642386232372,0.00341054,3319.2,3319.1,12.83122765]
[1642386232570,0.120644,3320.4,3319.2,6.2]
[1642386232769,0.420644,3320.4,3319.2,7.3402]
[1642386232972,1.69445166,3320.3,3319.4,0.7529]
[1642386233374,0.30568424,3320.2,3319.4,0.7529]
[1642386233570,0.60568424,3320.2,3319.4,0.7529]
[1642386233773,0.00511582,3320.1,3319.4,0.7529]
[1642386233972,0.01241635,3319.9,3319.4,0.7529]
[1642386234173,0.00454739,3320.0,3319.4,0.7529]
[1642386234374,0.00341055,3319.8,3319.2,7.3402]
[1642386234573,0.00397897,3319.9,3319.2,7.3402]
[1642386234774,0.00284212,3319.7,3319.3,0.75293]
[1642386234974,0.6,3320.2,3319.3,0.75293]
[1642386234975,0.00341055,3319.8,3319.3,0.75293]
[1642386235232,0.0022737,3319.6,3319.3,0.75293]
[1642386235418,0.6,3320.2,3319.4,2.57696888]
[1642386235419,0.00284212,3319.7,3319.4,2.57696888]
[1642386235722,0.0022737,3319.6,3319.4,2.57696888]
[1642386236119,0.00170527,3319.5,3319.3,0.75293]
[1642386236518,0.00113685,3319.4,3319.3,0.75293]
[1642386237320,0.00113685,3319.4,3319.3,10.85293]
[1642386237519,0.00113685,3319.4,3319.3,11.85293]
[1642386238020,0.120644,3320.4,3319.4,11.9]
[1642386238223,0.120644,3320.4,3319.7,0.75277]
[1642386238431,0.120644,3320.4,3319.8,2.6816907]
[1642386238432,0.00511581,3320.3,3319.8,2.6816907]
[1642386238826,0.00454739,3320.2,3319.8,2.6816907]
[1642386239081,5.61345289,3321.2,3320.0,11.9]
[1642386239082,5.0223,3321.2,3320.0,11.9]
[1642386239273,0.03514607,3321.3,3320.0,11.9]
[1642386239274,6.18,3321.4,3320.1,3.52653494]
[1642386239474,0.00511581,3321.1,3320.1,4.52653494]
[1642386239675,0.00511581,3321.1,3320.1,5.74093494]
[1642386239873,0.00454739,3321.0,3320.1,2.96712]
[1642386240072,0.00454739,3321.0,3320.1,2.2144]
[1642386240272,6.08,3321.4,3320.9,1.35436919]
[1642386240474,0.78598262,3321.5,3320.9,1.35436919]
[1642386240675,0.00625266,3321.3,3320.9,1.35436919]
[1642386240878,1.34223528,3321.5,3320.9,1.35436919]
[1642386241075,1.34223528,3321.5,3321.0,0.00170527]
[1642386241476,4.13383108,3321.5,3321.0,0.00170527]
[1642386241775,2.34223528,3321.5,3321.0,0.00170527]
[1642386242174,5.17743792,3321.5,3321.0,0.00170527]
[1642386242374,2.78427125,3321.4,3321.0,0.00170527]
[1642386242575,3.78427125,3321.4,3321.0,0.00170527]
[1642386243230,1.0,3321.4,3321.0,0.00170527]
[1642386243627,2.34769397,3321.5,3321.0,0.00170527]
[1642386243825,1.34769397,3321.5,3321.0,0.00170527]
[1642386244029,2.34769397,3321.5,3321.0,0.00170527]
[1642386244827,1.34769397,3321.5,3321.0,0.00170527]
[1642386245228,2.34769397,3321.5,3321.0,0.00170527]
[1642386245428,1.34769397,3321.5,3321.0,0.00170527]
[1642386245630,0.55625266,3321.5,3321.0,0.00170527]
[1642386245831,0.55625266,3321.5,3321.4,1.2910715]
[1642386246034,0.25625266,3321.5,3321.0,0.00170527]
[1642386246231,0.00113684,3321.5,3321.0,0.00170527]
[1642386246667,0.75388534,3321.5,3321.0,0.00170527]
[1642386246872,0.78398598,3321.5,3321.0,0.00170527]
[1642386247071,0.3,3321.4,3321.0,0.00170527]
[1642386249872,0.3,3321.4,3321.3,1.50188578]
[1642386250228,0.30113684,3321.5,3321.3,1.50188578]
[1642386251430,0.00113684,3321.5,3321.3,1.50188578]
[1642386257925,0.00113684,3321.5,3321.0,0.00170527]
[1642386258324,3.02307706,3321.5,3321.0,0.00170527]
[1642386258528,1.0,3321.4,3321.0,0.00170527]
[1642386258727,1.7528066,3321.4,3321.0,0.00170527]
[1642386258931,0.3,3321.3,3321.0,0.00170527]
[1642386259328,1.8056622,3321.3,3321.0,1.45205351]
[1642386259529,0.33992391,3321.3,3321.0,1.45205351]
[1642386259729,0.33992391,3321.3,3321.1,0.00113685]
[1642386259730,0.3,3321.3,3321.1,0.00113685]
[1642386260531,0.752812,3321.2,3321.1,0.00113685]
[1642386260732,0.79068857,3321.2,3321.1,0.00113685]
[1642386260932,2.09068857,3321.2,3321.1,0.00113685]
[1642386261131,1.09068857,3321.2,3321.1,0.00113685]
[1642386264177,0.33787657,3321.2,3321.1,0.00113685]
[1642386264376,1.3881161,3321.5,3321.1,0.00113685]
[1642386265217,1.3381161,3321.5,3321.1,0.00113685]
[1642386265719,1.33794047,3321.5,3321.1,0.00113685]
[1642386267822,1.30384654,3321.5,3321.1,0.00113685]
[1642386268024,1.34320615,3321.5,3321.1,0.00113685]
[1642386270069,0.00113684,3321.5,3321.1,1.21353008]
[1642386270271,0.00113684,3321.5,3321.1,0.00113685]
[1642386272827,0.00113684,3321.5,3321.1,2.57651076]
[1642386273230,0.00113684,3321.5,3321.2,0.434]
[1642386273427,0.00113684,3321.5,3321.3,1.90969]
[1642386273624,0.00113684,3321.5,3321.4,11.734]
[1642386275030,1.25113684,3322.6,3321.5,7.3]
[1642386275229,1.15113684,3322.6,3321.5,7.3]
[1642386275428,0.00568424,3322.5,3322.4,1.42160862]
[1642386276486,0.00568424,3322.5,3322.4,2.91772601]
[1642386277479,1.3427439,3322.9,3322.4,2.91772601]
[1642386277776,0.00170527,3322.8,3322.4,2.91772601]
[1642386277976,0.73876493,3322.9,3322.4,2.91772601]
[1642386278177,0.73876493,3322.9,3322.5,0.00170527]
[1642386279277,1.33876493,3322.9,3322.5,0.00170527]
[1642386279680,1.03876493,3322.9,3322.5,0.00170527]
[1642386279982,1.5048412,3323.1,3322.5,0.00170527]
[1642386279983,0.03845178,3323.1,3322.5,0.00170527]
[1642386280224,0.03596669,3323.2,3323.0,1.03307796]
[1642386280421,1.2201,3323.3,3323.0,1.03307796]
[1642386280620,6.18,3323.5,3323.0,1.03307796]
[1642386280920,6.18,3323.5,3322.8,1.18756172]
[1642386280921,0.00227369,3323.2,3322.8,1.18756172]
[1642386281122,0.78468523,3323.2,3322.8,1.18756172]
[1642386281322,0.30170527,3323.1,3322.8,1.18756172]
[1642386281722,2.10926885,3323.0,3322.5,0.00170527]
[1642386282121,2.40926885,3323.0,3322.4,1.39283652]
[1642386282323,0.7524922,3322.9,3322.5,0.00170527]
[1642386282525,0.79242549,3322.9,3322.5,0.00170527]
[1642386282720,1.79242549,3322.9,3322.5,0.00170527]
[1642386282921,3.59742529,3322.9,3322.5,0.00170527]
[1642386283123,3.59450915,3322.9,3322.5,0.00170527]
[1642386283321,0.3,3322.8,3322.5,0.00170527]
[1642386284078,1.8050304,3322.8,3322.5,0.00170527]
[1642386284276,1.8407783,3322.8,3322.5,0.00170527]
[1642386284471,2.8407783,3322.8,3322.2,0.00341054]
[1642386286376,1.33947947,3322.7,3322.2,0.00341054]
[1642386286574,0.3,3322.6,3322.2,0.00341054]
[1642386286776,3.23108063,3322.5,3321.5,1.1827]
[1642386286975,3.23108063,3322.5,3321.7,0.00284212]
[1642386286976,0.7526612,3322.4,3321.7,0.00284212]
[1642386287174,2.90375397,3322.3,3321.7,0.00284212]
[1642386287374,1.505313,3322.2,3321.7,0.00284212]
[1642386287575,3.59412924,3322.2,3321.7,0.00284212]
[1642386287823,3.14144924,3322.2,3321.7,0.00284212]
[1642386288022,3.14144924,3322.2,3321.6,0.00341054]
[1642386289525,1.0,3322.1,3321.6,0.00341054]
[1642386289920,0.3,3322.1,3321.6,0.00341054]
[1642386290119,0.78819359,3322.0,3321.6,0.00341054]
[1642386290520,0.3,3321.9,3321.6,0.00341054]
[1642386290921,0.3,3321.9,3321.5,0.00397897]
[1642386292170,3.06196836,3321.9,3321.5,0.00397897]
[1642386292375,0.3,3321.9,3321.5,0.00397897]
[1642386292769,0.3,3321.9,3321.5,0.01197897]
[1642386293170,1.08819359,3322.0,3321.6,0.00341054]
[1642386293171,0.78819359,3322.0,3321.6,0.00341054]
[1642386293372,0.7525309,3322.3,3321.6,0.00341054]
[1642386293570,0.78488212,3322.3,3321.9,1.13335638]
[1642386294071,0.78724501,3322.3,3322.0,0.00113685]
[1642386294273,0.68724501,3322.3,3322.0,0.00113685]
[1642386294471,0.3,3322.2,3321.9,1.15172383]
[1642386294670,0.3,3322.2,3322.0,0.00113685]
[1642386300681,0.00113685,3322.4,3322.0,0.00113685]
[1642386301079,0.50185222,3322.3,3322.0,0.00113685]
[1642386302283,0.50185222,3322.3,3322.0,0.43513685]
[1642386302929,0.50185222,3322.3,3322.0,3.01010378]
[1642386303624,0.50185222,3322.3,3322.0,0.43513685]
[1642386303826,0.80185222,3322.3,3322.0,0.43513685]
[1642386304440,0.3,3322.3,3322.0,0.43513685]
[1642386304926,0.00113685,3322.4,3322.0,0.43513685]
[1642386307170,0.00113685,3322.4,3322.1,2.51217113]
[1642386308573,0.00113685,3322.4,3322.0,1.62453685]
[1642386308873,0.00113685,3322.4,3322.0,4.1267713]
[1642386309875,0.00113685,3322.4,3322.1,2.51955335]
[1642386311923,0.00113685,3322.4,3322.2,2.57488212]
[1642386314076,0.00113685,3322.4,3322.0,1.19053685]
[1642386314873,0.00113685,3322.4,3322.1,2.57493754]
[1642386317074,1.7523353,3323.3,3322.1,2.57493754]
[1642386317276,1.7523353,3323.3,3322.8,1.34278697]
[1642386317476,0.60568423,3323.2,3322.2,3.03]
[1642386317918,0.00511581,3323.1,3322.2,3.03]
[1642386318321,0.00454739,3323.0,3322.3,2.57493754]
[1642386318527,0.00454739,3323.0,3322.7,1.37685252]
[1642386318727,0.00397896,3322.9,3322.7,1.37685252]
[1642386319026,0.00341054,3322.8,3322.7,1.37685252]
[1642386343735,0.00341054,3322.8,3322.7,3.95952868]
[1642386343992,0.00341054,3322.8,3322.7,3.95148868]
[1642386344181,0.00341054,3322.8,3322.7,8.95148868]
[1642386346185,0.00341054,3322.8,3322.7,10.87056923]
[1642386346385,0.00341054,3322.8,3322.7,8.95148868]
[1642386346684,0.00341054,3322.8,3322.7,10.88294816]
[1642386347083,0.00341054,3322.8,3322.7,15.78294816]
[1642386347285,0.00341054,3322.8,3322.7,13.85148868]
[1642386348528,0.00341054,3322.8,3322.7,15.03755868]
[1642386349328,1.1834,3324.3,3322.7,15.03755868]
[1642386349530,0.3,3324.2,3324.1,1.33438457]
[1642386349732,7.41136847,3324.2,3323.8,1.2704596]
[1642386350131,1.01080004,3324.1,3323.8,1.2704596]
[1642386350532,0.01023162,3324.0,3323.8,1.2704596]
[1642386350928,1.0,3324.1,3323.8,1.2704596]
[1642386350929,0.0096632,3323.9,3323.8,1.2704596]
[1642386357330,0.0096632,3323.9,3323.2,1.1456]
[1642386357631,20.45880935,3324.4,3323.2,1.1456]
[1642386357632,0.00909477,3323.8,3323.2,1.1456]
[1642386357831,0.00810332,3323.8,3323.2,1.1456]
[1642386358034,0.00852635,3323.7,3322.8,1.5044918]
[1642386358231,0.0075349,3323.7,3322.8,1.5044918]
[1642386358431,0.00696648,3323.6,3322.8,1.5044918]
[1642386358832,0.00639805,3323.5,3323.0,3.2552]
[1642386359283,0.00582963,3323.4,3323.0,3.2552]
[1642386359679,0.00526121,3323.3,3323.0,3.2552]
[1642386360080,0.00469278,3323.2,3323.0,3.2552]
[1642386360281,0.00469278,3323.2,3323.0,4.0074436]
[1642386360584,0.00412436,3323.1,3323.0,3.2552]
[1642386363027,0.00412436,3323.1,3323.0,5.72301393]
[1642386363629,0.00412436,3323.1,3323.0,6.85991393]
[1642386363827,0.00412436,3323.1,3323.0,9.43416918]
[1642386364228,0.95412436,3324.3,3323.1,5.9]
[1642386364428,0.3,3324.2,3324.0,1.48659707]
[1642386364628,0.30625266,3324.2,3324.0,1.48659707]
[1642386365029,0.00625266,3324.2,3324.0,1.48659707]
[1642386369778,0.00625266,3324.2,3323.9,1.28856909]
[1642386370232,0.00625266,3324.2,3323.5,1.1533]
[1642386371429,0.75854266,3324.2,3323.5,1.1533]
[1642386371631,0.3,3324.1,3323.5,1.1533]
[1642386371829,0.3,3324.1,3323.6,2.77303911]
[1642386372033,0.00511581,3324.0,3323.6,2.77303911]
[1642386372431,0.00454739,3323.9,3323.6,2.77303911]
[1642386372831,0.00397896,3323.8,3323.6,2.77303911]
[1642386373232,0.00341054,3323.7,3323.6,1.5086032]
[1642386377106,0.00341054,3323.7,3323.6,2.68858835]